bitfinex-derivatives/quotes_ETHF0:USTF0_20250912
["timestamp","ask_amount","ask_price","bid_price","bid_amount"]
[1757665148901,0.5285,4522.0,4521.9,0.1961]
[1757665149196,0.5285,4522.0,4521.8,3.2078]
[1757665150397,0.4076,4521.2,4521.1,3.2078]
[1757665150799,0.6952,4521.2,4521.1,3.4039]
[1757665154390,0.6952,4521.2,4521.1,3.2078]
[1757665154593,0.6952,4520.6,4520.5,3.2078]
[1757665155697,0.6952,4520.6,4520.5,3.6088]
[1757665156201,0.6952,4520.6,4520.5,3.8975]
[1757665157196,0.2876,4520.8,4520.5,3.3316]
[1757665157403,0.4857,4520.8,4520.7,0.6897]
[1757665158402,0.6952,4520.8,4520.7,0.6897]
[1757665158697,0.6952,4520.8,4520.7,0.401]
[1757665159002,0.2876,4520.7,4520.5,3.2078]
[1757665159602,0.6952,4520.7,4520.6,0.1961]
[1757665160297,0.2876,4520.9,4520.7,0.2887]
[1757665160503,0.4076,4520.7,4520.6,0.401]
[1757665160898,0.6952,4520.7,4520.6,0.401]
[1757665161106,0.6952,4520.7,4520.6,0.6897]
[1757665163602,0.2876,4521.0,4520.7,0.2887]
[1757665163902,0.4857,4521.0,4520.9,0.6897]
[1757665167200,0.5285,4521.0,4520.5,3.2078]
[1757665167400,0.4076,4520.6,4520.5,3.4039]
[1757665167601,0.6952,4520.6,4520.5,3.4039]
[1757665169009,0.6952,4520.6,4520.5,0.1961]
[1757665170611,0.6952,4520.6,4520.5,0.6834]
[1757665171815,0.3037,4520.9,4520.6,0.2948]
[1757665172108,0.7387,4521.1,4521.0,0.4873]
[1757665172308,0.9495,4521.1,4521.0,0.4028]
[1757665173204,0.9495,4521.1,4521.0,0.2103]
[1757665173407,0.4208,4520.8,4520.7,0.2103]
[1757665173617,0.7245,4520.8,4520.7,0.2103]
[1757665176011,0.3037,4520.7,4520.3,3.5026]
[1757665176330,0.21,4520.4,4520.3,3.9054]
[1757665176617,0.7245,4520.4,4520.3,3.9054]
[1757665176823,0.7245,4520.4,4520.3,3.4181]
[1757665177415,0.7245,4520.4,4520.3,3.9054]
[1757665179926,0.5137,4520.4,4520.3,3.9054]
[1757665180820,0.8478,4521.0,4520.9,0.4028]
[1757665181021,0.8478,4521.0,4520.9,0.2103]
[1757665183334,1.0728,4521.0,4520.9,0.6976]
[1757665184439,0.7245,4521.0,4520.9,0.6976]
[1757665185223,0.5137,4521.0,4520.9,0.6976]
[1757665185425,0.3037,4521.3,4521.0,0.2948]
[1757665185626,0.7245,4521.3,4521.2,0.6976]
[1757665187327,0.5137,4521.3,4521.2,0.6976]
[1757665189336,0.7245,4521.3,4521.2,0.6976]
[1757665196448,0.5137,4521.3,4521.2,0.6976]
[1757665197039,0.3037,4521.9,4521.3,0.2948]
[1757665197248,0.5441,4521.5,4521.4,0.5051]
[1757665197447,0.8478,4521.5,4521.4,0.5051]
[1757665197639,0.8478,4521.5,4521.4,0.6976]
[1757665197838,0.3037,4521.5,4521.4,0.6976]
[1757665198141,0.5046,4521.7,4521.6,0.7088]
[1757665198342,3.2078,4522.8,4521.7,0.3153]
[1757665198343,0.3018,4521.9,4521.7,0.3153]
[1757665198645,0.3018,4521.9,4521.6,0.3935]
[1757665198646,0.3018,4521.9,4521.8,3.9166]
[1757665199046,0.5046,4521.9,4521.8,3.9166]
[1757665200541,3.2078,4522.8,4521.8,3.9166]
[1757665200845,0.1233,4523.0,4522.3,3.9166]
[1757665201036,0.9256,4522.9,4522.8,0.1966]
[1757665201239,0.7006,4522.9,4522.8,0.3935]
[1757665201447,0.9256,4522.9,4522.8,0.1966]
[1757665202652,0.9256,4522.9,4522.4,0.3153]
[1757665202948,0.3018,4522.8,4522.3,3.5231]
[1757665203250,0.2028,4522.4,4522.3,3.9166]
[1757665203439,0.5046,4522.4,4522.3,3.9166]
[1757665205152,0.7006,4522.4,4522.3,3.6013]
[1757665205855,0.7006,4522.4,4522.3,3.9166]
[1757665206050,0.5046,4522.4,4522.3,3.9166]
[1757665206548,0.3018,4523.4,4522.5,0.1189]
[1757665206853,0.7006,4522.9,4522.5,0.3153]
[1757665207151,0.1251,4523.0,4522.4,0.9338]
[1757665207152,0.8257,4522.5,4522.4,0.9338]
[1757665207844,0.7006,4522.5,4522.4,0.9338]
[1757665208454,0.3018,4522.9,4522.4,0.6185]
[1757665208652,0.5046,4522.9,4522.8,0.7088]
[1757665209356,0.5046,4522.9,4522.8,3.9166]
[1757665210358,0.2028,4522.4,4522.3,0.7088]
[1757665210560,0.7006,4522.4,4522.3,0.6185]
[1757665213166,0.7006,4522.4,4522.3,0.9338]
[1757665214064,0.7006,4522.4,4522.3,0.7088]
[1757665215559,0.1251,4522.5,4521.7,0.1966]
[1757665215560,0.7006,4521.8,4521.7,0.1966]
[1757665216860,0.3018,4521.7,4521.6,3.2078]
[1757665217060,0.3018,4521.7,4521.6,3.4044]
[1757665217263,0.7006,4521.7,4521.6,3.4044]
[1757665218159,0.7006,4521.7,4521.2,0.3153]
[1757665218460,0.7006,4521.3,4521.2,0.1966]
[1757665222067,0.7006,4521.3,4521.2,0.7088]
[1757665222665,0.7006,4521.3,4521.2,0.3935]
[1757665223760,0.7006,4521.3,4521.2,0.7088]
[1757665223966,0.7006,4521.9,4521.8,0.7088]
[1757665225971,0.7006,4522.7,4522.6,0.1966]
[1757665226168,0.7006,4522.7,4522.6,0.7088]
[1757665226364,3.2078,4523.3,4522.6,0.7088]
[1757665226569,0.5046,4523.4,4523.3,0.5122]
[1757665226771,0.5046,4523.4,4523.3,0.7088]
[1757665227270,0.1251,4524.0,4523.0,0.225]
[1757665227271,0.6297,4524.0,4523.9,0.7088]
[1757665227470,0.8257,4524.0,4523.9,0.7088]
[1757665227665,0.8257,4524.0,4523.9,0.3935]
[1757665228170,0.5239,4524.0,4523.4,3.2078]
[1757665228371,0.5353,4523.5,4523.4,3.4094]
[1757665228568,0.842,4523.5,4523.4,3.6127]
[1757665229268,2.68005495,4527.2,4523.4,3.6127]
[1757665229269,0.5184,4524.3,4524.2,0.4049]
[1757665229465,3.2078,4524.9,4524.2,0.4049]
[1757665229466,0.7218,4524.9,4524.8,0.2016]
[1757665229775,0.7218,4524.9,4524.8,0.4049]
[1757665229968,0.5353,4524.5,4524.4,0.2016]
[1757665230173,0.842,4524.5,4524.4,0.2016]
[1757665230562,0.3067,4524.4,4524.2,3.2078]
[1757665230767,0.7218,4524.3,4523.8,0.225]
[1757665230987,0.1202,4524.0,4523.9,0.2016]
[1757665231301,0.5353,4524.0,4523.5,3.2078]
[1757665231673,0.4151,4523.6,4523.5,3.2078]
[1757665231975,0.7218,4523.6,4523.5,3.2078]
[1757665232765,0.2117,4523.2,4523.1,0.4948]
[1757665233075,0.5184,4523.2,4523.1,0.6981]
[1757665233769,0.3067,4523.5,4523.2,0.2932]
[1757665233970,0.8858,4524.0,4523.9,0.6981]
[1757665234270,0.3757,4524.0,4523.9,0.6981]
[1757665234470,0.6824,4524.0,4523.9,0.6981]
[1757665235677,0.5184,4524.0,4523.9,0.6981]
[1757665236078,0.2117,4523.1,4523.0,3.8155]
[1757665236376,0.7218,4523.1,4523.0,3.4094]
[1757665236778,0.3067,4523.4,4523.3,0.4049]
[1757665237074,0.3067,4523.6,4523.4,0.2932]
[1757665237383,0.7434,4523.9,4523.8,0.6981]
[1757665237976,0.2117,4523.9,4523.8,0.6981]
[1757665238374,3.2078,4524.4,4523.8,0.4049]
[1757665238575,3.6229,4524.4,4524.3,0.2016]
[1757665238776,4.51767737,4524.4,4524.3,0.2016]
[1757665239281,3.9296,4524.4,4524.3,0.6981]
[1757665239486,0.7218,4524.4,4524.3,0.6981]
[1757665244085,35.0578,4525.1,4525.0,0.6981]
[1757665244086,0.7218,4525.1,4525.0,0.6981]
[1757665244378,0.5184,4525.4,4525.3,0.4049]
[1757665244583,0.5184,4525.4,4525.3,0.6981]
[1757665246376,0.3067,4525.8,4525.4,0.2932]
[1757665246574,0.5184,4525.8,4525.7,0.4049]
[1757665246783,0.7218,4525.8,4525.7,0.6981]
[1757665248182,0.2117,4525.8,4525.7,0.6981]
[1757665248679,3.5145,4526.1,4525.8,0.2932]
[1757665248882,3.9296,4526.1,4526.0,0.2016]
[1757665249383,0.7218,4526.1,4526.0,0.2016]
[1757665251180,0.7218,4526.1,4526.0,0.4049]
[1757665251484,0.5184,4526.4,4526.3,0.6981]
[1757665253190,0.5184,4526.4,4526.3,3.9059]
[1757665253383,0.2117,4526.4,4526.3,3.9059]
[1757665253590,0.3067,4526.6,4526.4,0.2932]
[1757665253890,0.3067,4526.9,4526.8,0.6981]
[1757665254080,0.7218,4526.9,4526.8,0.4049]
[1757665254278,0.4151,4526.4,4526.3,3.2078]
[1757665254586,0.842,4526.0,4525.9,0.4266]
[1757665254786,0.842,4526.0,4525.9,0.4049]
[1757665255884,0.842,4526.0,4525.9,0.2016]
[1757665256084,0.4151,4525.8,4525.7,3.2078]
[1757665256387,0.7218,4525.8,4525.7,3.2078]
[1757665256586,0.7218,4525.8,4525.7,3.4094]
[1757665257783,0.7218,4525.8,4524.5,0.1159]
[1757665257784,0.7025,4525.3,4525.2,3.4031]
[1757665258183,0.7025,4524.8,4524.7,3.6003]
[1757665258491,0.7025,4524.8,4524.7,3.8916]
[1757665258682,0.5084,4524.8,4524.7,3.8916]
[1757665258884,0.7025,4524.8,4524.7,3.2078]
[1757665259908,0.5084,4524.8,4524.7,3.8916]
[1757665260206,0.5084,4524.8,4524.7,3.78542717]
[1757665260507,0.7025,4524.8,4524.7,3.78542717]
[1757665261010,0.7025,4524.8,4524.7,3.29692717]
[1757665261301,0.3,4524.7,4524.3,0.5163]
[1757665261511,0.7025,4524.4,4524.3,0.3925]
[1757665262106,0.7025,4524.4,4524.3,0.6838]
[1757665262498,0.7025,4524.4,4524.3,0.3925]
[1757665262807,0.7025,4524.4,4524.3,0.1953]
[1757665263003,0.7025,4524.4,4524.1,3.2078]
[1757665263004,0.3,4524.3,4524.1,3.2078]
[1757665263205,0.7025,4524.2,4524.1,3.2078]
[1757665263406,0.7025,4524.2,4524.1,3.4031]
[1757665263907,1.33480109,4524.2,4524.1,3.2078]
[1757665264399,0.7025,4523.7,4523.6,0.9088]
[1757665264606,0.7025,4523.7,4523.0,0.1154]
[1757665264607,0.1155,4524.0,4523.0,3.2078]
[1757665264810,0.7025,4523.1,4523.0,3.6003]
[1757665265107,0.7025,4523.1,4523.0,3.8916]
[1757665265600,1.1886341,4524.9,4524.3,0.1972]
[1757665265803,0.63237297,4524.8,4524.7,3.8916]
[1757665266008,0.7025,4524.8,4524.7,3.68035291]
[1757665266202,0.7025,4524.8,4524.7,0.27725291]
[1757665266407,5.29924772,4524.8,4524.7,0.27725291]
[1757665266606,5.29924772,4524.8,4523.9,3.2078]
[1757665266799,0.5084,4524.1,4524.0,0.95943988]
[1757665267213,0.7025,4524.1,4524.0,0.47093988]
[1757665268810,0.7025,4524.1,4524.0,0.95943988]
[1757665270403,0.7025,4524.1,4524.0,0.27563988]
[1757665270600,1.30554568,4524.1,4524.0,0.27563988]
[1757665270807,0.81144568,4524.1,4524.0,0.95943988]
[1757665271008,1.30554568,4524.1,4524.0,0.27563988]
[1757665272102,1.30554568,4524.1,4524.0,0.47093988]
[1757665272303,0.7025,4524.1,4524.0,0.95943988]
[1757665273712,0.7344,4524.3,4524.2,0.3925]
[1757665274009,1.5313908,4524.3,4524.2,0.27563988]
[1757665275107,5.5313908,4524.3,4524.2,0.27563988]
[1757665276010,0.818,4523.5,4523.4,3.2078]
[1757665276212,0.818,4523.5,4523.4,3.49263843]
[1757665276709,5.42761166,4523.5,4523.4,0.28483843]
[1757665276912,0.818,4523.0,4522.9,3.2078]
[1757665277116,1.044,4523.0,4522.9,3.2078]
[1757665278415,1.044,4523.0,4522.9,3.6003]
[1757665278614,1.044,4523.0,4522.9,3.8916]
[1757665278814,0.818,4523.0,4522.9,3.8916]
[1757665279019,1.044,4523.0,4522.9,3.8916]
[1757665280416,1.044,4523.0,4521.5,0.1164]
[1757665280417,0.7025,4521.8,4521.7,0.1953]
[1757665280717,0.9285,4521.8,4521.7,0.1953]
[1757665281310,0.9285,4521.8,4521.7,0.6838]
[1757665281509,0.7025,4521.8,4521.7,0.3925]
[1757665281723,0.9285,4521.8,4521.7,0.3925]
[1757665283412,0.7025,4521.8,4521.7,0.3925]
[1757665283616,0.9285,4521.8,4521.7,0.3925]
[1757665284919,0.518,4521.5,4521.4,0.1953]
[1757665285320,0.818,4521.5,4521.4,0.6838]
[1757665285820,0.9285,4521.5,4521.4,0.6838]
[1757665286616,0.5084,4521.5,4521.4,0.6838]
[1757665286921,0.226,4521.5,4521.4,0.6838]
[1757665287619,0.7344,4521.5,4521.4,0.6838]
[1757665287815,0.5084,4521.5,4521.4,0.6838]
[1757665291826,0.7077,4521.5,4521.4,0.6838]
[1757665292126,0.8346,4521.5,4521.4,0.6838]
[1757665295325,3.2078,4522.6,4522.5,0.52109]
[1757665295523,0.4359,4523.5,4522.5,3.4328]
[1757665295721,0.6468,4523.5,4523.4,3.2078]
[1757665295925,0.8461,4523.5,4523.4,3.2078]
[1757665296230,0.8461,4523.5,4523.4,3.49402997]
[1757665296817,0.8461,4523.5,4523.4,3.66379212]
[1757665299734,0.6468,4523.5,4523.4,3.66379212]
[1757665299934,0.4359,4523.5,4523.4,3.66379212]
[1757665300131,0.4359,4523.5,4523.4,7.66379212]
[1757665300432,0.4359,4523.5,4523.4,7.89679212]
[1757665301231,0.4359,4523.5,4523.4,8.11786212]
[1757665301627,0.4359,4524.0,4523.4,8.11786212]
[1757665301935,0.4359,4524.0,4523.9,3.2078]
[1757665302229,0.4359,4524.0,4523.9,3.89679212]
[1757665302436,0.1269,4524.5,4524.3,0.39773]
[1757665302634,0.1269,4524.5,4524.4,3.89679212]
[1757665303128,0.1269,4524.5,4524.4,3.61056215]
[1757665303436,0.4359,4524.5,4524.4,3.61056215]
[1757665303834,0.8461,4524.5,4524.4,3.61056215]
[1757665305334,0.6468,4524.5,4524.4,3.61056215]
[1757665305835,0.4359,4524.5,4524.4,3.61056215]
[1757665306933,0.4359,4524.5,4524.4,3.4408]
[1757665307335,0.4359,4524.5,4524.4,3.61023719]
[1757665307538,0.4359,4524.5,4524.4,3.4408]
[1757665307831,0.4359,4524.5,4524.4,3.61023718]
[1757665309133,0.4359,4524.5,4524.4,3.37723718]
[1757665309134,0.8461,4524.5,4524.4,3.37723718]
[1757665310237,0.4359,4524.5,4524.4,3.37723718]
[1757665310538,0.4359,4524.5,4524.4,3.37705315]
[1757665314133,0.4359,4524.5,4524.4,3.77478315]
[1757665314334,0.4359,4524.5,4524.4,3.60553]
[1757665314842,0.4359,4524.5,4524.4,3.2078]
[1757665315642,0.8461,4524.5,4524.4,3.4398]
[1757665316731,0.8461,4524.5,4524.4,3.2078]
[1757665317642,0.8461,4524.5,4522.4,1.16862327]
[1757665317643,0.8461,4523.5,4523.4,3.2078]
[1757665318043,4.8461,4523.5,4523.4,3.2078]
[1757665319539,0.8461,4523.5,4523.4,3.2078]
[1757665321246,4.8461,4523.5,4523.4,1.8387]
[1757665321438,4.8461,4523.5,4521.7,31.855]
[1757665321439,4.8461,4523.5,4522.5,0.1262]
[1757665321642,0.2069,4522.6,4522.5,0.6154]
[1757665321841,0.2069,4522.6,4522.5,0.8274]
[1757665322550,0.3998,4522.6,4522.5,0.6154]
[1757665323445,0.3998,4522.6,4522.5,0.8274]
[1757665323636,0.4433,4523.2,4522.5,0.5332]
[1757665323841,0.4433,4523.2,4522.6,0.2942]
[1757665324347,0.2069,4522.7,4522.6,0.7012]
[1757665324549,0.3998,4522.7,4522.6,0.7012]
[1757665326038,0.2069,4522.7,4522.6,0.7012]
[1757665328140,3.2078,4522.9,4522.7,0.2942]
[1757665328343,3.2078,4522.9,4522.8,0.7012]
[1757665328543,3.4147,4522.9,4522.8,0.7012]
[1757665329842,3.2078,4522.9,4522.6,0.2942]
[1757665330048,0.6111,4522.7,4522.6,0.2942]
[1757665330251,0.6111,4522.7,4522.6,0.4892]
[1757665332448,0.3998,4522.7,4522.6,0.4892]
[1757665332845,0.3998,4522.7,4522.6,0.7012]
[1757665335759,0.6111,4522.7,4522.6,0.2942]
[1757665335951,4.3998,4522.7,4522.1,0.2942]
[1757665336150,0.3998,4522.2,4522.1,0.4892]
[1757665336348,0.6111,4522.2,4522.1,0.4892]
[1757665336548,0.6111,4522.2,4522.1,0.2942]
[1757665336951,0.3998,4522.0,4521.9,0.2942]
[1757665337151,0.6111,4522.0,4521.9,0.2942]
[1757665337351,0.6111,4522.0,4521.9,0.4892]
[1757665337553,0.3998,4522.0,4521.9,0.7012]
[1757665337753,0.2069,4522.0,4521.9,0.7012]
[1757665337955,0.4369,4522.0,4521.9,0.7012]
[1757665338358,0.2069,4522.0,4521.9,0.7012]
[1757665338662,0.4369,4522.0,4521.9,0.7012]
[1757665339449,0.2069,4522.0,4521.9,0.7012]
[1757665339654,0.4369,4522.0,4521.9,0.7012]
[1757665341263,0.2069,4522.0,4521.9,0.7012]
[1757665341561,0.4369,4522.0,4521.9,0.7012]
[1757665341758,0.2069,4522.0,4521.9,0.7012]
[1757665341953,0.4369,4522.0,4521.9,0.7012]
[1757665343163,0.2069,4522.0,4521.9,0.7012]
[1757665343360,0.4369,4522.0,4521.9,0.7012]
[1757665343564,0.6298,4522.0,4521.9,0.7012]
[1757665345567,0.8411,4522.0,4521.9,0.7012]
[1757665345767,0.8411,4522.0,4521.9,0.4892]
[1757665345968,0.6298,4522.0,4521.9,0.7012]
[1757665346565,0.3998,4522.0,4521.9,0.7012]
[1757665346761,0.6298,4522.0,4521.9,0.7012]
[1757665350378,1.18991846,4522.0,4521.9,0.7012]
[1757665365192,0.56011846,4522.0,4521.9,0.7012]
[1757665365482,0.229,4522.1,4522.0,0.8116]
[1757665365674,0.9181,4522.1,4522.0,0.6855]
[1757665366987,0.9181,4522.1,4522.0,0.4854]
[1757665370486,0.9181,4522.1,4521.1,3.2078]
[1757665370788,0.6891,4521.6,4521.5,0.3928]
[1757665370991,0.9171,4521.6,4521.5,0.3928]
[1757665371187,0.4257,4521.6,4521.5,0.8116]
[1757665371385,0.228,4521.6,4521.5,0.8116]
[1757665371893,0.2924,4522.1,4521.5,0.5189]
[1757665372093,0.7181,4522.0,4521.9,0.3928]
[1757665372294,0.9171,4522.0,4521.9,0.6855]
[1757665376689,0.4257,4522.0,4521.9,0.6855]
[1757665377486,0.99386162,4522.0,4521.9,0.6855]
[1757665379998,0.99385178,4522.0,4521.9,0.6855]
[1757665381804,1.29685178,4522.0,4521.9,0.6855]
[1757665383305,1.48845178,4522.0,4521.9,0.6855]
[1757665386007,1.48845178,4522.0,4521.5,0.1261]
[1757665386200,0.3891,4521.7,4521.2,0.3153]
[1757665386397,0.6921,4521.3,4521.2,0.7311]
[1757665386798,0.9191,4521.3,4521.2,0.7311]
[1757665388808,0.227,4521.4,4521.3,0.7311]
[1757665390406,0.6921,4522.1,4522.0,0.4158]
[1757665390707,1.48220419,4522.1,4522.0,0.8492]
[1757665391710,1.48220419,4522.1,4522.0,0.7311]
[1757665395409,1.25520419,4522.1,4522.0,0.7311]
[1757665395706,1.48220419,4522.1,4522.0,0.7311]
[1757665397811,1.25520419,4522.1,4522.0,0.7311]
[1757665398011,0.227,4522.1,4522.0,0.8492]
[1757665401010,0.227,4522.3,4522.0,0.5339]
[1757665401212,0.227,4522.3,4522.2,0.4158]
[1757665401213,0.4245,4522.3,4522.2,0.4158]
[1757665401415,0.7275,4522.3,4522.2,0.7311]
[1757665402115,0.5005,4522.3,4522.2,0.7311]
[1757665402515,3.2078,4522.8,4522.2,0.4158]
[1757665402715,1.48169519,4522.7,4522.6,0.2113]
[1757665402916,1.48169519,4522.7,4522.6,0.5266]
[1757665403116,1.25469519,4522.7,4522.6,0.5266]
[1757665403520,1.48169519,4522.7,4522.6,0.5266]
[1757665403817,1.48169519,4522.7,4522.6,0.7311]
[1757665404408,1.25469519,4522.7,4522.6,0.7311]
[1757665404609,1.48169519,4522.7,4522.6,0.7311]
[1757665405431,0.78959519,4522.7,4522.6,0.7311]
[1757665405612,1.48169519,4522.7,4522.6,0.7311]
[1757665408421,1.25469519,4522.7,4522.6,0.7311]
[1757665408723,1.48069519,4522.7,4522.6,0.7311]
[1757665410119,0.56259519,4522.7,4522.6,0.7311]
[1757665410320,0.226,4523.0,4522.6,0.4158]
[1757665410525,0.7186,4522.8,4522.7,0.6975]
[1757665410729,1.28080308,4522.8,4522.7,0.6975]
[1757665413128,0.7186,4522.8,4522.7,0.6975]
[1757665413323,3.2078,4523.3,4522.8,0.2961]
[1757665413324,0.226,4522.9,4522.8,0.2961]
[1757665413525,0.4341,4522.9,4522.8,0.6975]
[1757665413831,0.7445,4522.9,4522.8,0.6975]
[1757665414026,3.2078,4523.3,4522.8,4.6225]
[1757665414222,3.2078,4523.8,4523.7,0.6975]
[1757665414418,0.226,4524.2,4524.1,0.4014]
[1757665414723,0.4341,4524.2,4524.1,0.6975]
[1757665415031,0.2081,4524.2,4524.1,0.6975]
[1757665416324,3.2078,4524.5,4524.2,0.2961]
[1757665416528,3.4159,4524.5,4524.4,0.4014]
[1757665416725,3.4159,4524.5,4524.4,0.6975]
[1757665416926,3.9264,4524.5,4524.4,0.6975]
[1757665417126,4.0481,4524.5,4524.4,0.4936]
[1757665418324,3.9264,4524.5,4524.4,0.4936]
[1757665420427,3.9264,4524.5,4524.4,0.6975]
[1757665420828,0.3104,4524.4,4523.6,0.2961]
[1757665421039,0.7186,4523.7,4523.6,0.1975]
[1757665421226,0.3104,4523.6,4523.5,3.2078]
[1757665421532,0.7186,4523.6,4523.5,3.2078]
[1757665421735,0.7186,4523.6,4523.5,3.7014]
[1757665422430,0.7186,4523.6,4523.5,4.0205]
[1757665423729,0.4082,4523.6,4523.5,4.0205]
[1757665424830,0.7186,4524.3,4524.2,0.1975]
[1757665425132,0.7186,4524.3,4523.6,0.2961]
[1757665425133,0.7186,4523.7,4523.6,0.6975]
[1757665425339,0.7186,4523.7,4523.6,0.4936]
[1757665426147,0.3104,4523.6,4523.5,3.2078]
[1757665426439,0.7186,4523.6,4523.5,3.2078]
[1757665426736,0.7186,4523.6,4523.5,3.7014]
[1757665428136,0.7186,4523.6,4523.5,3.9053]
[1757665429734,0.7186,4523.6,4523.5,3.7014]
[1757665429939,0.7186,4523.6,4523.5,3.9053]
[1757665430139,0.5364,4523.9,4523.6,0.2961]
[1757665430446,0.5185,4523.9,4523.8,0.6975]
[1757665430744,0.4082,4523.7,4523.5,3.2078]
[1757665430929,0.7186,4523.6,4523.5,3.5039]
[1757665431429,0.7186,4523.6,4523.5,0.2961]
[1757665432036,0.7186,4523.6,4523.5,0.4936]
[1757665432834,0.7186,4523.6,4523.5,0.8127]
[1757665433040,0.2081,4523.6,4523.5,0.8127]
[1757665433245,3.4338,4523.9,4523.6,0.2961]
[1757665433431,3.6419,4523.9,4523.8,0.4014]
[1757665433633,3.6419,4523.9,4523.8,0.6975]
[1757665434440,3.2078,4523.9,4523.8,0.6975]
[1757665434834,3.9264,4523.9,4523.8,0.6975]
[1757665435028,3.4159,4523.9,4523.8,0.6975]
[1757665435436,0.7186,4523.9,4523.8,0.6975]
[1757665436635,0.226,4524.1,4523.8,0.4014]
[1757665436840,0.226,4524.1,4523.5,0.1152]
[1757665436841,0.226,4524.1,4524.0,0.8127]
[1757665437344,0.4341,4524.1,4524.0,0.8127]
[1757665437529,0.2081,4524.1,4524.0,0.8127]
[1757665437836,3.2078,4524.5,4524.1,0.2988]
[1757665438040,0.78394945,4524.4,4524.3,0.7097]
[1757665438242,0.226,4524.4,4524.3,0.7097]
[1757665438441,0.4268,4524.4,4524.3,0.7097]
[1757665439443,0.226,4524.4,4524.3,0.7097]
[1757665440043,0.4268,4524.4,4524.3,0.7097]
[1757665440244,0.9407,4524.4,4524.3,0.7097]
[1757665442043,0.9407,4524.4,4524.3,0.98246172]
[1757665442246,1.49588533,4524.4,4524.3,0.98246172]
[1757665442845,0.98198533,4524.4,4524.3,0.98246172]
[1757665443447,1.49588533,4524.4,4524.3,0.98246172]
[1757665444040,1.49588533,4524.4,4524.3,0.27276172]
[1757665444742,1.49588533,4524.4,4524.3,0.78366172]
[1757665445250,1.49588533,4524.4,4524.3,0.78396382]
[1757665445942,1.49588533,4524.4,4524.3,0.98276382]
[1757665446151,1.18458533,4524.4,4524.3,0.98276382]
[1757665446348,0.98198533,4524.4,4524.3,0.98276382]
[1757665446847,1.49588533,4524.4,4524.3,0.98276382]
[1757665448852,0.78118533,4524.4,4524.3,0.98276382]
[1757665449046,1.29328533,4524.4,4524.3,0.98276382]
[1757665449248,0.98198533,4524.4,4524.3,0.98276382]
[1757665450851,1.29328533,4524.4,4524.3,0.98276382]
[1757665451846,1.49588533,4524.4,4524.3,0.98276382]
[1757665452651,1.49588533,4524.4,4524.3,0.27306382]
[1757665452844,1.49588533,4524.4,4524.3,0.48516382]
[1757665453049,1.49588533,4524.4,4524.3,0.78396382]
[1757665453250,1.49588533,4524.4,4524.3,0.98276382]
[1757665455344,1.18458533,4524.4,4524.3,0.98276382]
[1757665455844,1.49588533,4524.4,4524.3,0.98276382]
[1757665457056,0.75598533,4524.4,4524.3,0.98276382]
[1757665457443,0.2008,4524.4,4524.3,0.98276382]
[1757665460952,0.5373,4524.7,4524.5,0.1207]
[1757665461158,0.2008,4524.6,4524.5,0.8304]
[1757665461352,0.226,4524.7,4524.5,0.80462886]
[1757665461552,0.4268,4524.7,4524.6,0.98272886]
[1757665461784,0.98240239,4524.7,4524.6,0.98272886]
[1757665461960,1.49630239,4524.7,4524.6,0.98272886]
[1757665463257,1.27030239,4524.7,4524.6,0.98272886]
[1757665464360,0.95900239,4524.7,4524.6,0.98272886]
[1757665466460,1.27030239,4524.7,4524.6,0.98272886]
[1757665467656,0.95900239,4524.7,4524.6,0.98272886]
[1757665468452,0.55560239,4524.7,4524.6,0.98272886]
[1757665468655,0.2867,4525.0,4524.7,0.3171]
[1757665468952,0.2867,4525.0,4524.9,0.7163]
[1757665468953,0.4816,4525.0,4524.9,0.7163]
[1757665469152,0.6809,4525.0,4524.9,0.98932886]
[1757665471356,0.1949,4525.0,4524.9,0.98932886]
[1757665476055,0.226,4525.2,4524.9,0.67222886]
[1757665476259,0.4209,4525.2,4525.1,0.7163]
[1757665476561,1.45906125,4525.2,4525.1,0.98932886]
[1757665477059,0.55216125,4525.2,4525.1,0.98932886]
[1757665477257,3.4945,4525.5,4525.2,0.3171]
[1757665477466,3.4027,4525.5,4525.4,0.7163]
[1757665477765,3.4027,4525.5,4525.4,0.98932886]
[1757665477963,3.6894,4525.5,4525.4,0.98932886]
[1757665478159,3.2078,4525.5,4525.4,0.98932886]
[1757665478364,3.2078,4525.5,4525.4,4.98932886]
[1757665478555,3.2078,4525.5,4525.4,0.98932886]
[1757665478556,3.4027,4525.5,4525.4,0.98932886]
[1757665479254,3.2078,4525.5,4525.4,0.98932886]
[1757665480755,3.2078,4525.5,4525.4,0.98922904]
[1757665482364,4.1147,4526.1,4526.0,0.3992]
[1757665482664,4.66622375,4526.1,4526.0,0.98922904]
[1757665483255,5.25211042,4526.0,4525.5,0.1208]
[1757665483558,0.4816,4525.7,4525.6,0.0876]
[1757665484366,5.16451042,4525.6,4525.1,3.2078]
[1757665484566,0.126,4525.5,4525.2,0.22097]
[1757665484764,5.16451042,4525.6,4525.5,0.39763]
[1757665484970,5.16451042,4525.6,4525.5,0.62363]
[1757665485268,5.16451042,4525.6,4525.5,4.62363]
[1757665485458,0.54089042,4525.5,4525.1,4.20196]
[1757665485658,0.54089042,4525.5,4525.2,0.44697]
[1757665485860,0.54089042,4525.5,4525.4,0.39764]
[1757665486468,0.2867,4525.8,4525.6,0.39761]
[1757665486763,0.2867,4525.8,4525.7,3.83141]
[1757665489768,0.2867,4525.8,4525.7,3.4338]
[1757665490671,0.2867,4525.8,4525.7,3.83141]
[1757665493668,0.2867,4525.8,4525.7,3.4338]
[1757665495672,0.2867,4525.8,4525.7,3.83141]
[1757665496371,0.2867,4525.8,4525.7,3.4338]